bitfinex-derivatives/quotes_ETHF0:USTF0_20240920
["timestamp","ask_amount","ask_price","bid_price","bid_amount"]
[1726818197209,0.3908,2558.8,2558.6,0.387]
[1726818197406,0.7916,2558.9,2558.6,0.387]
[1726818198121,0.7916,2558.9,2558.6,3.437]
[1726818198310,0.79358,2558.9,2558.6,3.8278]
[1726818198507,0.79358,2558.9,2558.6,4.2296]
[1726818201321,0.4028,2558.9,2558.7,0.3908]
[1726818201522,0.4028,2558.9,2558.6,3.8388]
[1726818201523,0.79358,2558.9,2558.6,3.8388]
[1726818201816,7.5605,2559.5,2558.8,3.2078]
[1726818202008,7.5605,2559.5,2559.0,1.41]
[1726818202009,0.39073,2559.2,2559.0,1.41]
[1726818202211,0.39073,2559.2,2559.1,0.405]
[1726818212417,0.39075,2559.0,2558.9,0.3835]
[1726818213222,0.79955,2559.0,2558.9,0.3835]
[1726818214617,0.39078,2558.8,2558.7,0.4002]
[1726818215014,3.05,2558.8,2558.4,3.2078]
[1726818215212,0.39084,2558.5,2558.1,0.39088]
[1726818215411,3.05,2558.6,2558.0,4.99744572]
[1726818215617,3.8236,2558.6,2558.2,0.39087]
[1726818215821,0.39084,2558.5,2558.1,0.39088]
[1726818216008,0.39085,2558.4,2558.1,0.39088]
[1726818216414,0.39084,2558.5,2558.1,0.39088]
[1726818216615,0.39085,2558.4,2558.1,0.39088]
[1726818216817,3.8236,2558.6,2558.0,3.9742]
[1726818217020,0.39085,2558.4,2558.1,0.39088]
[1726818217214,0.39084,2558.5,2558.1,0.39088]
[1726818217723,0.39085,2558.4,2558.1,0.39088]
[1726818218614,0.7736,2558.6,2558.0,7.0242]
[1726818218811,0.3851,2558.9,2558.5,3.2078]
[1726818219121,0.39076,2559.0,2558.7,0.3908]
[1726818219320,0.39077,2558.9,2558.6,1.57551]
[1726818219513,0.39076,2559.0,2558.6,1.1847]
[1726818219715,0.39075,2559.1,2558.6,4.2347]
[1726818220021,0.39075,2559.1,2558.8,0.39078]
[1726818220223,0.7635,2559.2,2558.6,4.2347]
[1726818220224,1.15423,2559.2,2558.6,4.2347]
[1726818220518,0.39074,2559.1,2558.8,0.39078]
[1726818220719,1.15423,2559.2,2558.6,4.2347]
[1726818221027,0.39074,2559.1,2558.8,0.39078]
[1726818221618,1.15423,2559.2,2558.9,0.39076]
[1726818221817,1.15423,2559.2,2558.6,4.2347]
[1726818221818,0.39074,2559.1,2559.0,0.7754]
[1726818222723,0.78123,2559.2,2559.0,0.7754]
[1726818223322,0.3905,2559.2,2559.0,0.7754]
[1726818223527,0.39074,2559.1,2559.0,0.7754]
[1726818223824,0.3905,2559.2,2559.0,0.7754]
[1726818224024,0.39074,2559.1,2559.0,0.7754]
[1726818224614,3.05,2559.4,2559.0,0.7754]
[1726818224615,0.39073,2559.2,2559.0,0.7754]
[1726818224816,0.39074,2559.1,2559.0,0.7754]
[1726818225619,3.44074,2559.1,2559.0,0.3793]
[1726818226030,0.39077,2558.9,2558.8,0.378]
[1726818226324,0.39077,2558.9,2558.7,0.407]
[1726818226325,0.39078,2558.8,2558.7,0.407]
[1726818226714,3.05,2558.9,2558.5,3.5832]
[1726818226917,0.39081,2558.7,2558.5,3.9902]
[1726818227236,0.3908,2558.7,2558.5,3.9902]
[1726818228925,3.05,2558.9,2558.5,4.38103]
[1726818229126,0.39079,2558.8,2558.5,3.9902]
[1726818229318,0.39077,2558.9,2558.5,4.38103]
[1726818229628,4.2294,2559.0,2558.5,3.9902]
[1726818229629,0.3908,2558.8,2558.5,3.9902]
[1726818229821,4.2294,2559.0,2558.5,3.9902]
[1726818230828,0.3908,2558.7,2558.5,3.9902]
[1726818231420,4.2294,2559.0,2558.5,3.9902]
[1726818231831,0.3908,2558.8,2558.5,3.9902]
[1726818232822,0.7672,2559.0,2558.5,3.9902]
[1726818233029,0.7672,2559.0,2558.5,5.01344572]
[1726818233230,1.15796,2559.0,2558.7,0.3908]
[1726818233434,1.15796,2559.0,2558.5,5.01344572]
[1726818233435,0.7672,2559.0,2558.5,5.01344572]
[1726818233725,0.3875,2559.0,2558.6,3.05]
[1726818233931,0.39076,2559.0,2558.7,0.39079]
[1726818234331,0.39074,2559.1,2558.8,0.39078]
[1726818234530,6.6321,2559.2,2558.9,0.7872]
[1726818234729,0.39074,2559.1,2558.9,0.7872]
[1726818234937,0.39075,2559.0,2558.9,0.7872]
[1726818235823,0.39074,2559.1,2558.9,0.7872]
[1726818236019,0.4072,2559.3,2558.9,3.995]
[1726818236224,0.39074,2559.2,2558.9,3.995]
[1726818236929,0.39075,2559.0,2558.9,3.995]
[1726818237132,0.4043,2559.2,2558.8,3.44078]
[1726818237335,0.39073,2559.2,2558.9,4.0114]
[1726818237536,0.39073,2559.2,2558.9,4.40217]
[1726818237749,0.39073,2559.2,2558.9,4.0114]
[1726818238235,0.8205,2559.3,2558.9,4.0114]
[1726818238429,0.39073,2559.2,2559.0,0.4027]
[1726818238936,4.0283,2559.3,2559.0,0.4027]
[1726818238937,0.39074,2559.1,2559.0,0.4027]
[1726818239234,0.39075,2559.0,2558.9,0.8036]
[1726818239633,0.39075,2559.1,2558.9,0.8036]
[1726818240135,0.39075,2559.0,2558.9,0.8036]
[1726818240440,0.39075,2559.0,2558.9,0.3967]
[1726818240627,0.39078,2558.9,2558.7,0.4068]
[1726818240836,1.16948,2558.9,2558.7,0.4068]
[1726818241330,0.39078,2558.8,2558.7,0.4068]
[1726818241525,0.3908,2558.7,2558.6,3.2078]
[1726818241832,7.7367,2558.9,2558.4,1.187]
[1726818241833,0.39083,2558.5,2558.4,1.187]
[1726818242229,3.05,2558.8,2558.4,1.187]
[1726818242938,0.39082,2558.6,2558.4,1.187]
[1726818243237,0.39083,2558.5,2558.4,1.187]
[1726818244335,0.39082,2558.6,2558.4,1.187]
[1726818244549,3.05,2558.8,2558.4,1.187]
[1726818245431,0.39083,2558.5,2558.4,1.187]
[1726818247133,0.39083,2558.5,2558.4,0.7847]
[1726818249131,1.36802,2558.3,2558.2,3.2078]
[1726818249332,3.44086,2558.3,2558.2,3.2078]
[1726818249529,0.39091,2558.0,2557.9,0.3851]
[1726818251239,0.4102,2558.2,2557.9,0.3851]
[1726818251435,3.2078,2558.1,2557.9,0.3851]
[1726818251636,0.39091,2558.0,2557.9,0.3851]
[1726818251937,0.79511,2558.0,2557.9,0.3851]
[1726818256741,0.4042,2558.0,2557.9,0.3851]
[1726818256947,3.2078,2558.1,2557.9,0.3851]
[1726818256948,0.3909,2558.1,2557.9,0.3851]
[1726818257147,0.39091,2558.0,2557.9,0.3851]
[1726818272258,0.39091,2558.0,2557.9,1.7951]
[1726818272558,0.39084,2558.5,2558.1,0.39088]
[1726818272748,0.39084,2558.5,2558.3,3.2078]
[1726818273051,0.3814,2558.7,2558.2,2.1806]
[1726818273357,0.39082,2558.6,2558.3,0.4033]
[1726818273656,0.39079,2558.8,2558.4,1.80083]
[1726818273862,0.39079,2558.8,2558.4,0.39083]
[1726818274044,0.39079,2558.8,2558.4,0.39084]
[1726818275753,0.39084,2558.5,2558.3,3.6111]
[1726818275963,0.39084,2558.4,2558.3,3.6111]
[1726818276360,0.39084,2558.5,2558.3,3.6111]
[1726818276661,0.4004,2558.7,2558.3,3.6111]
[1726818276848,0.39084,2558.5,2558.3,3.6111]
[1726818277251,0.39084,2558.4,2558.3,3.6111]
[1726818278247,0.39084,2558.4,2558.3,0.4033]
[1726818279451,3.4504,2558.7,2558.3,0.4033]
[1726818279855,0.39084,2558.4,2558.3,0.4033]
[1726818280650,0.39086,2558.3,2558.2,0.3972]
[1726818280862,0.39089,2558.1,2558.0,3.5911]
[1726818281254,0.39089,2558.1,2558.0,3.2078]
[1726818281450,0.39094,2557.8,2557.6,0.3785]
[1726818281651,3.05,2557.9,2557.6,0.3785]
[1726818281857,3.05,2558.1,2557.6,0.3785]
[1726818282058,3.05,2558.1,2557.7,3.2078]
[1726818282059,0.39091,2558.0,2557.7,3.2078]
[1726818282262,0.39092,2557.9,2557.7,3.2078]
[1726818282563,0.39091,2558.0,2557.7,3.2078]
[1726818283261,0.39092,2557.9,2557.7,3.2078]
[1726818283764,3.05,2558.1,2557.7,3.2078]
[1726818283959,0.3909,2558.1,2557.7,3.59874]
[1726818284260,0.3909,2558.1,2557.7,3.2078]
[1726818286658,0.3909,2558.1,2557.7,3.59875]
[1726818287765,0.3909,2558.1,2557.7,6.64875]
[1726818288268,0.39091,2558.0,2557.7,6.64875]
[1726818288853,0.3909,2558.1,2557.7,6.64875]
[1726818289660,0.39091,2558.0,2557.7,6.64875]
[1726818289959,0.76828,2558.2,2557.8,0.39093]
[1726818290168,0.3909,2558.1,2557.9,0.4029]
[1726818290558,0.3909,2558.1,2558.0,0.3976]
[1726818292460,0.39091,2558.0,2557.9,0.4029]
[1726818293468,0.44455109,2558.0,2557.9,0.4029]
[1726818295073,0.05364109,2558.0,2557.9,0.4029]
[1726818295972,0.44455109,2558.0,2557.9,0.4029]
[1726818300175,0.05364109,2558.0,2557.9,0.4029]
[1726818300380,0.44455109,2558.0,2557.9,0.4029]
[1726818306499,0.05364109,2558.0,2557.9,0.4029]
[1726818308285,4.121,2558.7,2558.3,0.39085]
[1726818308483,3.2078,2558.9,2558.5,1.80082]
[1726818308484,0.3894,2558.8,2558.5,1.80082]
[1726818308790,0.39078,2558.9,2558.5,1.80082]
[1726818308991,0.39076,2559.0,2558.8,1.41]
[1726818309181,0.39076,2559.0,2558.9,0.3763]
[1726818309491,4.18451,2559.5,2558.9,1.7863]
[1726818309680,2.77611,2559.5,2559.1,1.41]
[1726818309879,0.39072,2559.2,2559.1,1.41]
[1726818310290,0.39072,2559.2,2559.0,1.41]
[1726818311188,0.39071,2559.3,2559.0,1.41]
[1726818311690,0.39072,2559.2,2559.1,0.3926]
[1726818313586,0.39072,2559.3,2559.1,0.3926]
[1726818313994,3.05,2559.4,2559.1,0.3926]
[1726818314184,0.39072,2559.3,2559.1,0.3926]
[1726818317687,3.4407,2559.4,2559.1,0.3926]
[1726818318187,3.05,2559.4,2559.1,0.3926]
[1726818318393,0.39071,2559.3,2559.1,0.3926]
[1726818318793,0.3894,2559.5,2559.1,3.4426]
[1726818318994,0.3894,2559.5,2559.3,3.05]
[1726818319194,0.39065,2559.7,2559.3,3.05]
[1726818319400,0.4,2559.8,2559.5,3.05]
[1726818319614,10.7818,2560.2,2559.6,0.3968]
[1726818319902,0.79059,2560.1,2559.6,0.78746]
[1726818320098,0.39061,2560.0,2559.6,0.3968]
[1726818321497,0.39061,2560.0,2559.7,3.05]
[1726818321686,0.39061,2560.0,2559.7,3.4386]
[1726818321889,0.39059,2560.1,2559.7,3.4386]
[1726818322102,0.3906,2560.0,2559.8,0.3898]
[1726818323796,0.39059,2560.1,2559.8,0.3898]
[1726818324101,0.39061,2560.0,2559.8,0.3898]
[1726818324289,3.2078,2560.2,2559.8,0.3898]
[1726818324490,0.3885,2560.4,2559.9,3.05]
[1726818324793,4.121,2560.6,2560.1,3.05]
[1726818325001,4.121,2560.6,2560.2,0.7984]
[1726818325299,7.71932,2560.6,2560.2,0.7984]
[1726818325689,0.39053,2560.5,2560.2,0.7984]
[1726818326590,0.39054,2560.4,2560.2,0.7984]
[1726818326789,0.39059,2560.1,2559.8,3.2078]
[1726818327298,3.05,2560.3,2559.8,3.2078]
[1726818327601,0.3906,2560.1,2559.8,3.2078]
[1726818328098,0.3906,2560.0,2559.8,3.2078]
[1726818329004,0.39059,2560.1,2559.8,3.2078]
[1726818329205,1.1734,2560.2,2559.8,3.59842]
[1726818329702,0.77067,2560.2,2559.8,3.59842]
[1726818330098,0.3801,2560.2,2559.8,3.2078]
[1726818330303,0.39059,2560.1,2559.8,3.2078]
[1726818330697,0.39059,2560.1,2559.8,3.59843]
[1726818331592,0.39059,2560.1,2559.8,3.2078]
[1726818332893,0.3801,2560.2,2559.8,3.2078]
[1726818333100,0.39065,2559.7,2559.6,0.8036]
[1726818340508,0.4092,2559.8,2559.6,0.8036]
[1726818340718,0.39065,2559.7,2559.6,0.8036]
[1726818341105,7.171,2560.3,2559.6,0.8036]
[1726818341314,0.39061,2560.0,2559.7,3.2078]
[1726818341725,0.3848,2560.2,2559.7,3.2078]
[1726818342506,3.2078,2560.1,2559.7,3.2078]
[1726818343215,0.39063,2559.8,2559.7,3.2078]
[1726818343419,0.39062,2559.9,2559.7,3.2078]
[1726818344118,3.2078,2560.1,2559.8,3.05]
[1726818344119,3.59839,2560.1,2559.8,3.05]
[1726818344619,0.3906,2560.0,2559.8,3.05]
[1726818345015,0.3906,2560.0,2559.7,3.59844]
[1726818346219,0.3906,2560.0,2559.7,3.2078]
[1726818346421,3.59839,2560.1,2559.7,3.59844]
[1726818346826,0.39059,2560.1,2559.7,3.59844]
[1726818347019,0.39059,2560.1,2559.7,3.2078]
[1726818347514,0.3906,2560.0,2559.7,3.2078]
[1726818347827,3.5926,2560.2,2559.7,3.2078]
[1726818348014,0.3906,2560.0,2559.7,3.2078]
[1726818348522,6.988,3573.9,2559.7,3.2078]
[1726818348523,0.9762,2560.9,2559.8,6.9564]
[1726818348714,0.9762,2560.9,2560.1,6.2578]
[1726818348715,4.9009,2560.6,2560.1,6.2578]
[1726818349021,0.39053,2560.5,2560.2,0.3738]
[1726818350021,0.7799,2560.6,2560.2,0.3738]
[1726818350322,6.2578,2560.5,2559.9,0.3818]
[1726818350522,0.3906,2560.1,2559.9,0.3738]
[1726818350715,0.3906,2560.0,2559.9,0.3738]
[1726818351119,0.39059,2560.1,2559.9,0.3738]
[1726818351320,0.3906,2560.0,2559.9,0.3738]
[1726818351823,0.791,2560.1,2559.9,0.3738]
[1726818352422,0.3906,2560.0,2559.9,0.3738]
[1726818352623,0.79099,2560.1,2559.9,0.3738]
[1726818354122,0.4004,2560.1,2559.9,0.3738]
[1726818354925,0.4004,2560.1,2559.7,0.39065]
[1726818355127,0.4004,2560.1,2559.8,0.3832]
[1726818355827,0.79099,2560.1,2559.8,0.3832]
[1726818358028,6.2578,2560.6,2559.9,3.2078]
[1726818358330,0.39056,2560.3,2559.9,3.59841]
[1726818358527,0.3831,2560.5,2560.2,3.59836]
[1726818358730,0.39052,2560.6,2560.3,4.2313]
[1726818359135,1.55639,2560.8,2560.3,4.2313]
[1726818359328,0.7793,2560.8,2560.5,6.2578]
[1726818359626,0.3796,2561.1,2560.5,6.2578]
[1726818359827,0.7539,2561.1,2560.5,6.64832]
[1726818360030,0.39049,2560.8,2560.5,6.64832]
[1726818360229,0.3962,2561.0,2560.7,3.05]
[1726818360432,0.39046,2561.0,2560.9,6.2578]
[1726818360627,0.76474,2561.1,2560.9,6.2578]
[1726818360830,0.39045,2561.0,2560.9,6.2578]
[1726818361027,0.39046,2560.9,2560.8,0.7622]
[1726818361230,0.76936,2560.9,2560.8,0.7622]
[1726818362644,0.3789,2560.9,2560.8,0.7622]
[1726818363140,0.76936,2560.9,2560.8,0.7622]
[1726818363331,0.3789,2560.9,2560.8,0.7622]
[1726818363534,0.76936,2560.9,2560.8,0.7622]
[1726818364034,0.3789,2560.9,2560.8,0.7622]
[1726818364434,0.39045,2561.0,2560.8,0.7622]
[1726818364632,0.39045,2561.0,2560.9,3.2078]
[1726818364837,0.3743,2561.1,2560.9,3.2078]
[1726818365135,0.76474,2561.1,2560.9,6.2578]
[1726818365333,0.3743,2561.1,2560.9,6.2578]
[1726818365732,0.76474,2561.1,2560.9,6.2578]
[1726818367727,0.79772,2561.2,2560.9,6.2578]
[1726818368132,0.39043,2561.1,2560.9,6.2578]
[1726818369039,0.39045,2561.0,2560.8,0.7622]
[1726818369238,0.39046,2560.9,2560.8,3.97]
[1726818369441,0.39046,2560.9,2560.5,3.6048]
[1726818369634,0.3905,2560.7,2560.5,3.6048]
[1726818369834,0.3905,2560.7,2560.5,3.2078]
[1726818371742,0.3905,2560.7,2560.2,0.94050045]
[1726818371743,7.1134,2560.6,2559.8,3.5718]
[1726818371938,6.2578,2560.6,2559.9,0.4095]
[1726818372142,3.05,2560.6,2560.1,3.2078]
[1726818372439,0.39057,2560.2,2560.1,3.2078]
[1726818372638,0.39057,2560.2,2559.7,3.44063]
[1726818372639,0.39069,2559.4,2559.3,0.364]
[1726818372836,3.05,2559.5,2559.0,3.2078]
[1726818373140,3.05,2559.3,2559.0,3.2078]
[1726818373330,0.39073,2559.2,2559.0,3.2078]
[1726818373533,1.1823,2559.4,2559.0,3.2078]
[1726818374344,0.39071,2559.3,2559.0,3.2078]
[1726818374841,0.7916,2559.4,2559.1,3.05]
[1726818375042,0.39064,2559.8,2559.3,3.2078]
[1726818375435,3.2078,2559.9,2559.4,0.3786]
[1726818375739,0.7927,2560.0,2559.6,3.05]
[1726818375943,0.7927,2560.0,2559.4,0.3786]
[1726818375944,0.7927,2560.0,2559.5,0.78657]
[1726818376343,1.18331,2560.0,2559.5,0.3959]
[1726818376643,0.39064,2559.8,2559.5,0.3959]
[1726818378142,0.39063,2559.8,2559.5,0.3959]
[1726818378741,0.39065,2559.7,2559.5,0.3959]
[1726818378949,0.39067,2559.6,2559.3,3.2078]
[1726818380241,3.05,2559.8,2559.3,3.2078]
[1726818380448,0.39068,2559.5,2559.3,3.2078]
[1726818382149,3.05,2559.8,2559.3,3.2078]
[1726818382350,0.39069,2559.5,2559.3,3.2078]
[1726818382554,0.39067,2559.6,2559.3,3.59851]
[1726818382780,0.7927,2560.0,2559.5,3.05]
[1726818383072,4.02626,2560.7,2559.9,3.05]
[1726818383263,0.7771,2560.6,2560.0,3.977]
[1726818383453,0.39056,2560.3,2560.0,3.977]
[1726818383649,0.39058,2560.2,2560.0,3.5864]
[1726818384256,0.39059,2560.1,2560.0,3.5864]
[1726818384548,3.05,2560.1,2559.6,0.4116]
[1726818384752,4.02655,2559.9,2559.3,3.6168]
[1726818385052,0.39067,2559.6,2559.3,4.0075]
[1726818385240,0.39065,2559.7,2559.4,0.39069]
[1726818385646,0.39069,2559.4,2559.3,3.6168]
[1726818385848,7.23436,2559.9,2559.3,0.409]
[1726818386148,3.2078,2559.6,2559.0,3.6145]
[1726818386347,0.3907,2559.4,2559.1,0.39073]
[1726818386746,3.05,2559.3,2559.0,0.409]
[1726818386947,0.39074,2559.1,2559.0,0.409]
[1726818387143,6.6471,2559.3,2558.7,3.2078]
[1726818387352,0.77966,2559.0,2558.7,3.6168]
[1726818387549,0.77966,2559.0,2558.7,4.0076]
[1726818387752,0.3889,2559.0,2558.7,4.00759]
[1726818387948,0.3889,2559.0,2558.7,3.6168]
[1726818388255,0.78521,2559.3,2559.0,0.39074]
[1726818388550,0.39072,2559.2,2559.1,0.3905]
[1726818388748,0.78522,2559.3,2559.1,0.3905]
[1726818388948,0.39072,2559.2,2559.1,0.3905]
[1726818389249,0.78522,2559.3,2559.1,0.3905]
[1726818389449,0.3945,2559.3,2559.1,0.3905]
[1726818389752,0.78522,2559.3,2559.1,0.3905]
[1726818390446,0.39074,2559.1,2559.0,3.2078]
[1726818390647,3.05,2559.1,2558.4,3.2078]
[1726818390855,3.05,2558.8,2558.3,0.388]
[1726818391047,0.39084,2558.5,2558.3,0.388]
[1726818391250,0.4126,2558.7,2558.3,0.388]
[1726818392048,0.39082,2558.6,2558.4,3.2078]
[1726818392648,3.05,2558.6,2558.4,3.2078]
[1726818392844,3.05,2558.6,2558.3,0.388]
[1726818393054,0.4126,2558.7,2558.1,3.6125]
[1726818393055,3.05,2558.4,2558.1,3.6125]
[1726818393251,3.44085,2558.4,2558.1,4.0005]
[1726818393554,0.39085,2558.4,2558.1,4.0005]
[1726818394149,0.4126,2558.7,2558.1,4.0005]
[1726818394349,0.39084,2558.5,2558.1,4.0005]
[1726818394556,0.39083,2558.5,2558.1,4.39139]
[1726818394854,1.79272,2559.0,2558.1,4.39139]
[1726818394855,0.4045,2559.0,2558.7,0.3908]
[1726818395051,0.4045,2559.0,2558.7,3.2078]
[1726818395254,0.4045,2559.0,2558.8,0.77358]
[1726818395556,0.4045,2559.0,2558.8,0.7766]
[1726818395747,0.79526,2559.0,2558.8,0.7766]
[1726818395944,0.79526,2559.0,2558.8,0.3828]
[1726818396656,0.4045,2559.0,2558.6,0.39081]
[1726818396856,0.4045,2559.0,2558.7,0.39079]
[1726818397052,0.8088,2559.4,2558.7,3.6204]
[1726818397252,1.1831,2559.4,2559.0,3.2078]
[1726818397455,0.7729,2559.4,2559.1,0.76473]
[1726818397757,0.7729,2559.4,2559.1,3.5818]
[1726818398252,0.7729,2559.4,2559.1,0.374]
[1726818398460,1.1803,2559.4,2559.1,0.374]
[1726818398758,0.8053,2559.9,2559.3,3.2078]
[1726818398950,1.19592,2559.9,2559.4,0.39068]
[1726818399560,1.19592,2559.9,2559.6,3.2078]
[1726818401059,0.3743,2560.2,2559.6,3.2078]
[1726818401255,0.3906,2560.1,2559.7,0.8009]
[1726818401651,0.3915,2560.3,2559.7,0.8009]
[1726818401848,0.3915,2560.3,2559.9,3.2078]
[1726818402160,0.7654,2560.6,2559.9,3.2078]
[1726818402353,0.39054,2560.4,2559.9,0.39061]
[1726818402554,0.39053,2560.5,2560.0,0.3906]
[1726818403056,0.39053,2560.5,2559.8,3.2078]
[1726818403260,0.3755,2560.6,2560.1,3.2078]
[1726818403460,0.3755,2560.6,2560.3,0.39055]
[1726818403656,0.3755,2560.6,2560.2,0.7885]
[1726818403959,0.78199,2560.8,2560.4,3.2078]
[1726818404158,0.3905,2560.7,2560.4,3.2078]
[1726818404457,3.2078,2561.0,2560.4,3.2078]
[1726818404656,0.4101,2561.1,2560.7,3.2078]
[1726818404959,3.2078,2561.4,2560.8,0.379]
[1726818405259,0.39041,2561.3,2560.9,0.39046]
[1726818405661,3.2078,2561.4,2560.8,0.379]
[1726818405863,0.39041,2561.3,2560.9,0.39045]
[1726818406162,0.39041,2561.3,2561.0,0.39045]
[1726818406664,3.2078,2561.4,2560.8,0.379]
[1726818406863,0.39046,2561.0,2560.7,3.2078]
[1726818407061,0.39046,2560.9,2560.7,3.2078]
[1726818407261,0.39046,2561.0,2560.6,0.39049]
[1726818407962,0.39046,2561.0,2560.8,3.2078]
[1726818408264,0.39047,2560.9,2560.5,0.78342]
[1726818408464,0.39047,2560.9,2560.7,3.2078]
[1726818409158,0.39048,2560.8,2560.7,3.2078]
[1726818409360,3.2078,2561.1,2560.3,0.3809]
[1726818409557,3.2078,2561.1,2560.4,3.2078]
[1726818409558,0.97614,2561.0,2560.4,3.2078]
[1726818409758,0.4091,2560.9,2560.4,3.2078]
[1726818409963,0.78275,2561.0,2560.4,3.2078]
[1726818410157,0.4091,2561.3,2560.7,3.2078]
[1726818410362,0.79951,2561.3,2560.9,0.39046]
[1726818410660,0.79951,2561.3,2560.8,0.3992]
[1726818410661,0.4091,2561.3,2560.8,0.8082]
[1726818410869,0.79951,2561.3,2560.8,1.19867]
[1726818411165,0.79951,2561.3,2560.9,0.39046]
[1726818411965,0.39039,2561.4,2561.0,0.39044]
[1726818412164,3.6001,2561.7,2560.8,0.8082]
[1726818412165,3.9995,2561.7,2560.8,0.8082]
[1726818412366,0.3904,2561.4,2560.8,0.8082]
[1726818412665,0.39041,2561.3,2560.9,0.39046]
[1726818412868,0.97564,2562.3,2561.2,6.9578]
[1726818413067,0.3903,2562.0,2561.6,0.39035]
[1726818413267,3.2078,2562.1,2561.5,3.2078]
[1726818413455,0.39033,2561.8,2561.5,3.2078]
[1726818413767,3.2078,2562.1,2561.5,3.2078]
[1726818414271,0.3903,2562.0,2561.6,0.39035]
[1726818414567,0.3903,2562.0,2561.5,3.59816]
[1726818415067,0.3903,2562.0,2561.6,0.39035]
[1726818415457,3.2078,2562.1,2561.5,3.2078]
[1726818415664,0.3947,2562.3,2561.8,3.2078]
[1726818415865,0.78965,2562.4,2562.0,3.2078]
[1726818416067,0.78965,2562.4,2562.0,3.59809]
[1726818416366,0.78965,2562.4,2562.0,3.2078]
[1726818416562,0.3994,2562.4,2562.0,3.59809]
[1726818416762,0.78964,2562.4,2562.0,3.2078]
[1726818417169,3.2078,2562.8,2562.0,3.2078]
[1726818417361,3.59793,2563.2,2562.4,3.2078]
[1726818417563,0.39007,2563.5,2562.7,6.9578]
[1726818417763,0.402,2563.6,2563.2,0.3901]
[1726818417968,0.402,2563.6,2563.2,0.39011]
[1726818418165,0.402,2563.6,2563.0,3.2078]
[1726818418674,0.39014,2563.1,2562.9,3.2078]
[1726818418973,0.39014,2563.1,2562.7,3.75]
[1726818419171,3.2078,2563.4,2562.7,3.75]
[1726818419361,0.39011,2563.3,2562.7,3.75]
[1726818419561,0.39011,2563.2,2562.7,3.75]
[1726818419762,0.3961,2563.3,2562.9,3.2078]
[1726818420161,4.2977,2563.3,2562.5,4.0084]
[1726818420377,0.39018,2562.8,2562.5,0.3976]
[1726818420568,0.39018,2562.8,2562.0,0.4076]
[1726818420569,0.39022,2562.6,2562.0,0.3779]
[1726818420875,4.1833,2562.7,2562.0,0.7805]
[1726818421076,0.39026,2562.3,2562.0,0.4026]
[1726818421366,0.7996,2562.6,2562.0,0.4026]
[1726818421572,0.97556,2562.5,2561.5,3.5857]
[1726818421771,0.39031,2562.0,2561.5,3.5857]
[1726818421970,0.97563,2562.3,2561.5,3.5857]
[1726818422171,0.3844,2562.2,2561.5,3.2078]
[1726818422361,3.6034,2562.1,2561.5,3.2078]
[1726818422569,3.2078,2562.4,2561.8,3.2078]
[1726818422766,3.2078,2562.4,2561.9,0.3849]
[1726818422966,0.3956,2562.5,2561.9,0.3849]
[1726818423177,0.97559,2562.4,2561.9,0.3849]
[1726818423374,0.3956,2562.5,2561.5,3.2078]
[1726818423772,0.3903,2562.1,2561.5,3.2078]
[1726818423974,3.2078,2562.3,2561.5,3.2078]
[1726818424479,0.97567,2562.2,2561.5,3.2078]
[1726818424677,3.2078,2562.3,2561.4,0.3849]
[1726818424864,0.3903,2562.0,2561.4,3.5927]
[1726818425270,3.2078,2562.3,2561.4,3.5927]
[1726818425478,0.39027,2562.2,2561.7,3.2078]
[1726818425780,3.2078,2562.3,2561.7,3.2078]
[1726818426273,0.39027,2562.2,2561.7,3.2078]
[1726818426980,0.39032,2561.9,2561.7,3.2078]
[1726818427172,0.39032,2561.9,2561.4,0.3849]
[1726818428275,3.2078,2562.3,2561.4,0.77528]
[1726818428576,3.2078,2562.3,2561.4,0.3849]
[1726818428773,3.2078,2562.3,2561.9,0.3903]
[1726818428976,3.2078,2562.3,2561.8,0.39032]
[1726818429171,3.59805,2562.3,2561.7,0.78723]
[1726818429366,0.3956,2562.5,2562.0,3.2078]
[1726818429571,0.3956,2562.5,2562.1,0.78618]
[1726818429772,0.39021,2562.6,2562.1,0.3959]
[1726818429966,0.39023,2562.5,2562.1,0.3959]
[1726818430570,3.5958,2562.8,2562.1,0.3959]
[1726818431069,0.39021,2562.6,2562.1,0.78618]
[1726818431372,0.39022,2562.5,2562.1,0.3959]
[1726818431881,0.39024,2562.4,2562.1,0.3959]
[1726818432076,3.5958,2562.8,2562.0,3.2078]
[1726818432378,3.2078,2562.4,2561.8,0.4009]
[1726818432580,0.39031,2561.9,2561.8,0.4009]
[1726818432877,0.395,2562.3,2561.8,0.4009]
[1726818433081,0.3903,2562.0,2561.8,0.4009]
[1726818433272,0.39031,2561.9,2561.8,0.4009]
[1726818433673,0.39031,2561.9,2561.4,3.59818]
[1726818433879,0.3903,2562.0,2561.5,0.79797]
[1726818434681,0.3903,2562.0,2561.6,0.39035]
[1726818434880,0.3903,2562.0,2561.5,0.79796]
[1726818435182,0.39031,2561.9,2561.5,0.79796]
[1726818435577,0.3903,2562.0,2561.6,0.39036]
[1726818435781,0.78526,2562.3,2561.9,0.39031]
[1726818435985,0.78526,2562.3,2562.0,0.4076]
[1726818436281,3.9844,2562.8,2562.2,3.2078]